fUSD/lending_fUSD_20260529
["ID","MTS","AMOUNT","RATE_DAILY","PERIOD"]
[423315249,1780054242000,-493.905739,0.00013699,2]
[423315245,1780054242000,-493.905739,0.00013699,2]
[423315243,1780054242000,-493.905739,0.00013699,2]
[423315242,1780054242000,-416.4885433,0.00013698,2]
[423315244,1780054242000,-493.905739,0.00013699,2]
[423315252,1780054242000,-493.905739,0.00013699,2]
[423315251,1780054242000,-493.905739,0.00013699,2]
[423315241,1780054242000,-500.0,0.00013698,2]
[423315238,1780054242000,-929.11,0.00013698,2]
[423315240,1780054242000,-502.6201193,0.00013698,2]
[423315328,1780054243000,-150.0,0.00013769,2]
[423315326,1780054243000,-150.0,0.0001376,2]
[423315317,1780054243000,-156.08721906,0.0001373,2]
[423315312,1780054243000,-150.0,0.00013715,2]
[423315318,1780054243000,-150.0,0.00013737,2]
[423315314,1780054243000,-170.49062066,0.00013718,2]
[423315316,1780054243000,-150.0,0.00013727,2]
[423315310,1780054243000,-500.0,0.00013714,2]
[423315311,1780054243000,-500.0,0.00013714,2]
[423315321,1780054243000,-929.11,0.00013745,2]
[423315313,1780054243000,-156.08721906,0.00013715,2]
[423315320,1780054243000,-500.0,0.00013745,2]
[423315322,1780054243000,-500.0,0.00013745,9]
[423315319,1780054243000,-236.28,0.0001374,2]
[423315329,1780054243000,-200.0,0.00013769,2]
[423315330,1780054243000,-200.0,0.00013769,2]
[423315325,1780054243000,-433.0,0.00013746,2]
[423315323,1780054243000,-156.08721906,0.00013745,2]
[423315324,1780054243000,-500.0,0.00013746,2]
[423315332,1780054243000,-150.0,0.00013776,2]
[423315338,1780054243000,-156.08721906,0.00013806,2]
[423315331,1780054243000,-156.08721906,0.00013775,2]
[423315341,1780054243000,-156.08721906,0.00013821,2]
[423315315,1780054243000,-150.0,0.00013718,2]
[423315327,1780054243000,-156.08721906,0.0001376,2]
[423315309,1780054243000,-500.0,0.00013714,2]
[423315284,1780054243000,-151.0,0.00013699,2]
[423315307,1780054243000,-4740.0,0.00013702,5]
[423315337,1780054243000,-150.0,0.00013806,2]
[423315285,1780054243000,-151.0,0.00013699,2]
[423315283,1780054243000,-151.0,0.00013699,2]
[423315282,1780054243000,-151.0,0.00013699,2]
[423315287,1780054243000,-151.0,0.00013699,2]
[423315286,1780054243000,-151.0,0.00013699,2]
[423315291,1780054243000,-151.0,0.00013699,2]
[423315289,1780054243000,-151.0,0.00013699,2]
[423315288,1780054243000,-151.0,0.00013699,2]
[423315292,1780054243000,-151.0,0.00013699,2]
[423315290,1780054243000,-151.0,0.00013699,2]
[423315294,1780054243000,-2500.0,0.00013699,2]
[423315295,1780054243000,-151.0,0.00013699,2]
[423315296,1780054243000,-151.0,0.00013699,2]
[423315293,1780054243000,-274.425778,0.00013699,2]
[423315298,1780054243000,-500.0,0.00013699,10]
[423315301,1780054243000,-185.20326433,0.00013699,10]
[423315302,1780054243000,-154.0,0.00013699,2]
[423315297,1780054243000,-500.0,0.00013699,10]
[423315299,1780054243000,-500.0,0.00013699,10]
[423315300,1780054243000,-500.0,0.00013699,10]
[423315303,1780054243000,-156.08721906,0.000137,2]
[423315306,1780054243000,-244.34088694,0.000137,2]
[423315305,1780054243000,-150.0,0.000137,2]
[423315304,1780054243000,-150.0,0.000137,2]
[423315308,1780054243000,-500.0,0.00013714,2]
[423315335,1780054243000,-156.68,0.00013789,2]
[423315334,1780054243000,-150.0,0.00013787,2]
[423315336,1780054243000,-156.08721906,0.0001379,2]
[423315375,1780054243000,-150.0,0.00013987,2]
[423315371,1780054243000,-156.08721906,0.00013957,2]
[423315376,1780054243000,-150.0,0.00013987,2]
[423315368,1780054243000,-150.0,0.00013949,2]
[423315369,1780054243000,-2351.0,0.00013954,2]
[423315372,1780054243000,-150.0,0.00013967,2]
[423315374,1780054243000,-166.66,0.00013973,2]
[423315388,1780054243000,-1545.0,0.00014024,2]
[423315383,1780054243000,-500.0,0.00014,2]
[423315385,1780054243000,-150.0,0.00014006,2]
[423315381,1780054243000,-500.0,0.00014,2]
[423315378,1780054243000,-156.08721906,0.00013987,2]
[423315386,1780054243000,-156.08721906,0.00014017,2]
[423315380,1780054243000,-10655.02419733,0.00014,2]
[423315387,1780054243000,-448.25598923,0.00014018,2]
[423315382,1780054243000,-250.0,0.00014,2]
[423315384,1780054243000,-156.08721906,0.00014002,2]
[423315377,1780054243000,-150.0,0.00013987,2]
[423315390,1780054243000,-150.0,0.00014033,2]
[423315389,1780054243000,-150.0,0.00014027,2]
[423315391,1780054243000,-156.08721906,0.00014033,2]
[423315393,1780054243000,-316.63903778,0.00014034,2]
[423315392,1780054243000,-340.81831352,0.00014034,2]
[423315394,1780054243000,-200.0,0.00014046,2]
[423315342,1780054243000,-37999.8785117,0.00013821,2]
[423315373,1780054243000,-156.08721906,0.00013972,2]
[423315370,1780054243000,-150.0,0.00013956,2]
[423315379,1780054243000,-57395.62766503,0.0001399,2]
[423315367,1780054243000,-156.08721906,0.00013942,2]
[423315340,1780054243000,-150.0,0.00013821,2]
[423315366,1780054243000,-150.0,0.00013942,2]
[423315333,1780054243000,-166.66,0.00013782,2]
[423315339,1780054243000,-166.22,0.00013815,2]
[423315344,1780054243000,-409.0,0.00013836,2]
[423315354,1780054243000,-151.0,0.00013874,2]
[423315343,1780054243000,-150.0,0.00013834,2]
[423315345,1780054243000,-166.66,0.00013836,2]
[423315349,1780054243000,-156.08721906,0.00013851,2]
[423315351,1780054243000,-150.0,0.00013862,2]
[423315350,1780054243000,-1425.60983658,0.00013855,2]
[423315347,1780054243000,-150.0,0.00013847,2]
[423315352,1780054243000,-156.08721906,0.00013866,2]
[423315346,1780054243000,-156.08721906,0.00013836,2]
[423315357,1780054243000,-150.0,0.00013896,2]
[423315353,1780054243000,-1544.0,0.00013874,2]
[423315355,1780054243000,-156.08721906,0.00013881,2]
[423315356,1780054243000,-150.0,0.00013891,2]
[423315362,1780054243000,-2267.0,0.0001391,2]
[423315365,1780054243000,-156.08721906,0.00013927,2]
[423315364,1780054243000,-156.08721906,0.00013912,2]
[423315363,1780054243000,-587.0,0.0001391,2]
[423315361,1780054243000,-150.0,0.00013907,2]
[423315358,1780054243000,-156.08721906,0.00013896,2]
[423315348,1780054243000,-150.0,0.00013851,2]
[423315359,1780054243000,-200.0,0.00013907,2]
[423315360,1780054243000,-200.0,0.00013907,2]
[423315436,1780054244000,-150.0,0.00014237,2]
[423315429,1780054244000,-162.408305,0.00014203,2]
[423315426,1780054244000,-162.408305,0.00014203,2]
[423315433,1780054244000,-150.0,0.00014214,2]
[423315430,1780054244000,-151.0,0.00014203,2]
[423315432,1780054244000,-150.0,0.00014207,2]
[423315428,1780054244000,-162.408305,0.00014203,2]
[423315427,1780054244000,-162.408305,0.00014203,2]
[423315435,1780054244000,-156.08721906,0.00014229,2]
[423315431,1780054244000,-151.0,0.00014203,2]
[423315437,1780054244000,-150.0,0.00014237,2]
[423315434,1780054244000,-156.08721906,0.00014214,2]
[423315439,1780054244000,-150.0,0.00014237,2]
[423315454,1780054244000,-150.0,0.00014267,2]
[423315442,1780054244000,-166.66,0.00014247,2]
[423315440,1780054244000,-150.0,0.00014237,2]
[423315441,1780054244000,-156.08721906,0.00014245,2]
[423315443,1780054244000,-155.18893265,0.00014249,2]
[423315445,1780054244000,-153.0,0.00014249,2]
[423315444,1780054244000,-153.0,0.00014249,2]
[423315446,1780054244000,-231.1569584,0.00014249,2]
[423315447,1780054244000,-153.0,0.00014249,2]
[423315448,1780054244000,-153.0,0.00014249,2]
[423315450,1780054244000,-1545.0,0.00014249,2]
[423315460,1780054244000,-23210.4560799,0.00014315,2]
[423315453,1780054244000,-156.08721906,0.0001426,2]
[423315421,1780054244000,-150.0,0.00014179,2]
[423315449,1780054244000,-1545.0,0.00014249,2]
[423315424,1780054244000,-156.08721906,0.00014184,2]
[423315395,1780054244000,-200.0,0.00014046,2]
[423315423,1780054244000,-166.66,0.00014183,2]
[423315461,1780054244000,-1010.999266,0.00014315,2]
[423315400,1780054244000,-1205.64058551,0.00014061,2]
[423315397,1780054244000,-150.0,0.0001405,2]
[423315396,1780054244000,-156.08721906,0.00014048,2]
[423315398,1780054244000,-166.6,0.00014052,2]
[423315399,1780054244000,-2384.77840294,0.00014061,2]
[423315401,1780054244000,-156.08721906,0.00014063,2]
[423315406,1780054244000,-150.0,0.00014087,2]
[423315405,1780054244000,-833.02,0.00014081,2]
[423315404,1780054244000,-156.08721906,0.00014078,2]
[423315413,1780054244000,-156.08721906,0.00014123,2]
[423315403,1780054244000,-150.0,0.00014078,2]
[423315412,1780054244000,-150.0,0.00014123,2]
[423315402,1780054244000,-150.0,0.00014064,2]
[423315407,1780054244000,-156.08721906,0.00014093,2]
[423315408,1780054244000,-342.02273588,0.00014104,2]
[423315411,1780054244000,-150.0,0.00014122,2]
[423315409,1780054244000,-156.08721906,0.00014108,2]
[423315410,1780054244000,-166.66,0.0001411,2]
[423315415,1780054244000,-150.0,0.00014143,2]
[423315416,1780054244000,-150.0,0.00014147,2]
[423315414,1780054244000,-156.08721906,0.00014139,2]
[423315417,1780054244000,-150.0,0.00014154,2]
[423315425,1780054244000,-156.08721906,0.00014199,2]
[423315419,1780054244000,-150.0,0.00014169,2]
[423315418,1780054244000,-156.08721906,0.00014154,2]
[423315420,1780054244000,-156.08721906,0.00014169,2]
[423315422,1780054244000,-37999.8785117,0.00014181,2]
[423315459,1780054244000,-156.08721906,0.00014305,2]
[423315438,1780054244000,-150.0,0.00014237,2]
[423315452,1780054244000,-150.0,0.0001426,2]
[423315498,1780054244000,-150.0,0.00014468,2]
[423315489,1780054244000,-350.0,0.00014416,2]
[423315492,1780054244000,-566.33999559,0.00014437,2]
[423315493,1780054244000,-350.0,0.00014441,2]
[423315496,1780054244000,-150.0,0.00014447,2]
[423315494,1780054244000,-150.0,0.00014441,2]
[423315490,1780054244000,-150.0,0.00014424,2]
[423315491,1780054244000,-156.08721906,0.00014426,2]
[423315495,1780054244000,-156.08721906,0.00014441,2]
[423315497,1780054244000,-156.08721906,0.00014456,2]
[423315511,1780054244000,-500.0,0.00014504,2]
[423315504,1780054244000,-300.0,0.00014486,2]
[423315500,1780054244000,-151.0,0.00014472,2]
[423315509,1780054244000,-14000.0,0.000145,5]
[423315501,1780054244000,-151.0,0.00014472,2]
[423315503,1780054244000,-500.0,0.00014484,2]
[423315499,1780054244000,-156.08721906,0.00014472,2]
[423315506,1780054244000,-150.0,0.00014487,2]
[423315502,1780054244000,-151.0,0.00014474,2]
[423315507,1780054244000,-150.0,0.00014487,2]
[423315508,1780054244000,-156.08721906,0.00014487,2]
[423315510,1780054244000,-156.08721906,0.00014502,2]
[423315505,1780054244000,-150.0,0.00014487,2]
[423315513,1780054244000,-500.0,0.00014508,2]
[423315512,1780054244000,-150.0,0.00014507,2]
[423315514,1780054244000,-500.0,0.00014508,2]
[423315455,1780054244000,-156.08721906,0.00014275,2]
[423315487,1780054244000,-150.0,0.0001441,2]
[423315488,1780054244000,-156.08721906,0.00014411,2]
[423315515,1780054244000,-249.66568301,0.00014508,2]
[423315483,1780054244000,-156.08721906,0.00014396,2]
[423315480,1780054244000,-166.66,0.00014384,2]
[423315456,1780054244000,-156.08721906,0.0001429,2]
[423315462,1780054244000,-1010.999266,0.00014315,2]
[423315451,1780054244000,-300.0,0.00014256,2]
[423315457,1780054244000,-150.0,0.00014295,2]
[423315463,1780054244000,-1010.999266,0.00014315,2]
[423315472,1780054244000,-150.0,0.00014351,2]
[423315473,1780054244000,-156.08721906,0.00014351,2]
[423315474,1780054244000,-150.0,0.00014352,2]
[423315464,1780054244000,-1010.999266,0.00014315,2]
[423315465,1780054244000,-151.0,0.00014315,2]
[423315469,1780054244000,-150.0,0.00014327,2]
[423315467,1780054244000,-150.0,0.0001432,2]
[423315516,1780054244000,-500.0,0.00014508,2]
[423315458,1780054244000,-150.0,0.00014305,2]
[423315468,1780054244000,-156.08721906,0.0001432,2]
[423315466,1780054244000,-151.0,0.00014315,2]
[423315484,1780054244000,-4857.0,0.00014399,5]
[423315482,1780054244000,-150.0,0.00014396,2]
[423315486,1780054244000,-1000.0,0.000144,2]
[423315477,1780054244000,-156.08721906,0.00014366,2]
[423315485,1780054244000,-4869.0,0.00014399,5]
[423315479,1780054244000,-156.08721906,0.00014381,2]
[423315470,1780054244000,-150.0,0.00014331,2]
[423315476,1780054244000,-236.28,0.00014364,2]
[423315471,1780054244000,-156.08721906,0.00014335,2]
[423315481,1780054244000,-150.0,0.00014387,2]
[423315475,1780054244000,-166.22,0.00014363,2]
[423315478,1780054244000,-1425.60983658,0.00014377,2]
[423315558,1780054245000,-156.08721906,0.00014653,2]
[423315541,1780054245000,-1381.0276728,0.00014586,2]
[423315546,1780054245000,-1545.0,0.00014609,2]
[423315549,1780054245000,-8105.9032393,0.00014618,2]
[423315552,1780054245000,-150.0,0.00014623,2]
[423315557,1780054245000,-150.0,0.00014653,2]
[423315554,1780054245000,-150.0,0.00014627,2]
[423315559,1780054245000,-150.0,0.00014668,2]
[423315553,1780054245000,-156.08721906,0.00014623,2]
[423315555,1780054245000,-156.08721906,0.00014638,2]
[423315543,1780054245000,-2800.0,0.000146,5]
[423315550,1780054245000,-105979.4206685,0.00014618,2]
[423315567,1780054245000,-156.08721906,0.00014699,2]
[423315561,1780054245000,-156.08721906,0.00014684,2]
[423315560,1780054245000,-156.08721906,0.00014668,2]
[423315563,1780054245000,-150.0,0.00014687,2]
[423315564,1780054245000,-200.0,0.00014689,2]
[423315566,1780054245000,-150.0,0.00014698,2]
[423315565,1780054245000,-350.0,0.00014696,2]
[423315562,1780054245000,-350.0,0.00014686,2]
[423315568,1780054245000,-2800.0,0.000147,5]
[423315569,1780054245000,-150.0,0.00014705,2]
[423315548,1780054245000,-150.0,0.00014612,2]
[423315570,1780054245000,-150.0,0.00014714,2]
[423315556,1780054245000,-150.0,0.0001464,2]
[423315538,1780054245000,-150.0,0.00014578,2]
[423315529,1780054245000,-156.08721906,0.00014532,2]
[423315542,1780054245000,-156.08721906,0.00014593,2]
[423315572,1780054245000,-500.0,0.00014715,2]
[423315523,1780054245000,-59710.2772194,0.00014509,2]
[423315522,1780054245000,-493.905739,0.00014509,2]
[423315517,1780054245000,-929.11,0.00014508,2]
[423315519,1780054245000,-493.905739,0.00014509,2]
[423315520,1780054245000,-493.905739,0.00014509,2]
[423315518,1780054245000,-500.0,0.00014508,10]
[423315521,1780054245000,-493.905739,0.00014509,2]
[423315524,1780054245000,-1561.9964343,0.00014509,2]
[423315526,1780054245000,-150.0,0.00014518,2]
[423315527,1780054245000,-150.0,0.00014525,2]
[423315540,1780054245000,-150.0,0.00014583,2]
[423315528,1780054245000,-150.0,0.00014532,2]
[423315533,1780054245000,-500.0,0.00014551,2]
[423315530,1780054245000,-37999.8785117,0.0001454,2]
[423315532,1780054245000,-154.0,0.00014549,2]
[423315534,1780054245000,-350.0,0.00014562,2]
[423315535,1780054245000,-156.08721906,0.00014562,2]
[423315547,1780054245000,-1545.0,0.00014609,2]
[423315537,1780054245000,-300.0,0.00014578,2]
[423315539,1780054245000,-156.08721906,0.00014578,2]
[423315545,1780054245000,-151.0,0.00014609,2]
[423315544,1780054245000,-156.08721906,0.00014608,2]
[423315536,1780054245000,-150.0,0.00014567,2]
[423315531,1780054245000,-156.08721906,0.00014547,2]
[423315571,1780054245000,-156.08721906,0.00014714,2]
[423315525,1780054245000,-156.08721906,0.00014517,2]
[423315573,1780054245000,-156.08721906,0.00014729,2]
[423315608,1780054245000,-150.0,0.0001482,2]
[423315609,1780054245000,-156.08721906,0.0001482,2]
[423315610,1780054245000,-25000.0,0.00014821,3]
[423315606,1780054245000,-162.408305,0.00014812,2]
[423315605,1780054245000,-162.408305,0.00014812,2]
[423315607,1780054245000,-150.0,0.00014813,2]
[423315627,1780054245000,-1010.999266,0.00014856,2]
[423315611,1780054245000,-3442.02899292,0.00014827,2]
[423315613,1780054245000,-200.0,0.00014832,2]
[423315615,1780054245000,-152.31861,0.00014838,2]
[423315614,1780054245000,-156.08721906,0.00014835,2]
[423315604,1780054245000,-162.408305,0.00014812,2]
[423315612,1780054245000,-25000.0,0.0001483,3]
[423315619,1780054245000,-25000.0,0.00014847,3]
[423315625,1780054245000,-151.0,0.00014856,2]
[423315616,1780054245000,-237.491094,0.00014838,2]
[423315626,1780054245000,-1010.999266,0.00014856,2]
[423315618,1780054245000,-5178.9527822,0.00014839,2]
[423315623,1780054245000,-25000.0,0.00014856,3]
[423315624,1780054245000,-151.0,0.00014856,2]
[423315620,1780054245000,-2000.0,0.0001485,2]
[423315622,1780054245000,-156.08721906,0.0001485,2]
[423315628,1780054245000,-1010.999266,0.00014856,2]
[423315582,1780054245000,-1278.3,0.00014774,2]
[423315617,1780054245000,-25000.0,0.00014838,3]
[423315599,1780054245000,-1545.0,0.00014805,2]
[423315621,1780054245000,-150.0,0.0001485,2]
[423315603,1780054245000,-162.408305,0.00014812,2]
[423315597,1780054245000,-150.0,0.00014805,2]
[423315583,1780054245000,-2000.0,0.00014774,2]
[423315576,1780054245000,-5088.57093731,0.00014743,2]
[423315578,1780054245000,-150.0,0.00014747,2]
[423315579,1780054245000,-150.0,0.00014756,2]
[423315574,1780054245000,-150.0,0.00014737,2]
[423315580,1780054245000,-150.0,0.00014759,2]
[423315581,1780054245000,-156.08721906,0.00014759,2]
[423315585,1780054245000,-156.08721906,0.00014774,2]
[423315584,1780054245000,-156.68,0.00014774,2]
[423315589,1780054245000,-200.0,0.00014784,2]
[423315590,1780054245000,-25000.0,0.00014786,3]
[423315577,1780054245000,-156.08721906,0.00014744,2]
[423315591,1780054245000,-156.08721906,0.0001479,2]
[423315593,1780054245000,-150.0,0.00014799,2]
[423315602,1780054245000,-25000.0,0.00014812,3]
[423315601,1780054245000,-350.0,0.00014809,2]
[423315595,1780054245000,-500.0,0.00014803,2]
[423315596,1780054245000,-25000.0,0.00014803,3]
[423315600,1780054245000,-150.0,0.00014806,2]
[423315594,1780054245000,-2800.0,0.000148,5]
[423315586,1780054245000,-153.0,0.00014775,2]
[423315588,1780054245000,-500.0,0.00014778,2]
[423315587,1780054245000,-302.0,0.00014775,2]
[423315592,1780054245000,-25000.0,0.00014794,3]
[423315598,1780054245000,-156.08721906,0.00014805,2]
[423315663,1780054246000,-13323.1637184,0.00014883,2]
[423315667,1780054246000,-300.0,0.0001489,2]
[423315681,1780054246000,-22142.45254127,0.000149,2]
[423315655,1780054246000,-163.0,0.0001488,2]
[423315669,1780054246000,-25000.0,0.00014891,3]
[423315671,1780054246000,-150.0,0.00014893,2]
[423315673,1780054246000,-150.0,0.00014895,2]
[423315678,1780054246000,-500.0,0.00014899,2]
[423315677,1780054246000,-427.36695461,0.00014899,2]
[423315684,1780054246000,-1425.60983658,0.000149,2]
[423315680,1780054246000,-308.1489258,0.000149,2]
[423315683,1780054246000,-25000.0,0.000149,3]
[423315682,1780054246000,-13869.29728404,0.000149,3]
[423315685,1780054246000,-1490.76239877,0.000149,2]
[423315675,1780054246000,-156.08721906,0.00014895,2]
[423315686,1780054246000,-2800.0,0.000149,5]
[423315689,1780054246000,-1205.64058551,0.000149,2]
[423315665,1780054246000,-348.5285145,0.00014883,2]
[423315687,1780054246000,-37999.8785117,0.000149,2]
[423315679,1780054246000,-500.0,0.00014899,2]
[423315657,1780054246000,-156.08721906,0.0001488,2]
[423315638,1780054246000,-25000.0,0.00014874,3]
[423315650,1780054246000,-10000.0,0.00014876,2]
[423315690,1780054246000,-342.02273588,0.000149,2]
[423315629,1780054246000,-1010.999266,0.00014856,2]
[423315631,1780054246000,-151.0,0.00014856,2]
[423315637,1780054246000,-500.0,0.00014873,2]
[423315636,1780054246000,-300.0,0.00014873,2]
[423315630,1780054246000,-151.0,0.00014856,2]
[423315633,1780054246000,-156.08721906,0.00014865,2]
[423315634,1780054246000,-150.0,0.00014866,2]
[423315635,1780054246000,-150.0,0.00014871,2]
[423315659,1780054246000,-300.0,0.00014881,2]
[423315632,1780054246000,-25000.0,0.00014865,3]
[423315642,1780054246000,-493.905739,0.00014874,2]
[423315643,1780054246000,-493.905739,0.00014874,2]
[423315639,1780054246000,-493.905739,0.00014874,2]
[423315645,1780054246000,-929.11,0.00014874,2]
[423315646,1780054246000,-500.0,0.00014874,11]
[423315648,1780054246000,-6111.0,0.00014875,2]
[423315644,1780054246000,-500.0,0.00014874,2]
[423315661,1780054246000,-25000.0,0.00014882,3]
[423315653,1780054246000,-200.0,0.00014879,2]
[423315641,1780054246000,-493.905739,0.00014874,2]
[423315692,1780054246000,-23647.2051062,0.00014907,2]
[423315696,1780054246000,-150.30096206,0.00014909,2]
[423315688,1780054246000,-2384.77840294,0.000149,2]
[423315711,1780054246000,-151.0,0.00014986,2]
[423315719,1780054246000,-150.00000001,0.00014986,2]
[423315720,1780054246000,-156.08721906,0.00014986,2]
[423315721,1780054246000,-236.28,0.00014989,2]
[423315723,1780054246000,-151.0,0.00014997,2]
[423315732,1780054246000,-500.0,0.00014999,2]
[423315722,1780054246000,-500.0,0.00014989,2]
[423315725,1780054246000,-929.11,0.00014998,2]
[423315726,1780054246000,-500.0,0.00014998,12]
[423315718,1780054246000,-150.0,0.00014986,2]
[423315727,1780054246000,-595.52920017,0.00014999,3]
[423315724,1780054246000,-500.0,0.00014998,2]
[423315728,1780054246000,-15482.37435377,0.00014999,3]
[423315730,1780054246000,-162.408305,0.00014999,2]
[423315729,1780054246000,-162.408305,0.00014999,2]
[423315734,1780054246000,-162.408301,0.00014999,2]
[423315735,1780054246000,-500.0,0.00014999,2]
[423315736,1780054246000,-500.0,0.00014999,2]
[423315693,1780054246000,-300.0,0.00014908,2]
[423315737,1780054246000,-500.0,0.00014999,2]
[423315731,1780054246000,-162.408305,0.00014999,2]
[423315717,1780054246000,-150.0,0.00014986,2]
[423315733,1780054246000,-500.0,0.00014999,2]
[423315716,1780054246000,-150.0,0.00014986,2]
[423315715,1780054246000,-150.0,0.00014986,2]
[423315694,1780054246000,-152.0,0.00014909,2]
[423315695,1780054246000,-150.30096206,0.00014909,2]
[423315697,1780054246000,-166.22,0.0001491,2]
[423315698,1780054246000,-156.08721906,0.00014911,2]
[423315699,1780054246000,-10000.0,0.00014924,2]
[423315707,1780054246000,-156.08721906,0.00014956,2]
[423315708,1780054246000,-1799.0,0.00014959,2]
[423315700,1780054246000,-156.08721906,0.00014926,2]
[423315701,1780054246000,-150.0,0.00014926,2]
[423315691,1780054246000,-1808.6714879,0.00014907,2]
[423315709,1780054246000,-156.08721906,0.00014971,2]
[423315702,1780054246000,-150.0,0.00014929,2]
[423315712,1780054246000,-150.0,0.00014986,2]
[423315713,1780054246000,-150.0,0.00014986,2]
[423315710,1780054246000,-348.06,0.00014985,2]
[423315714,1780054246000,-150.0,0.00014986,2]
[423315705,1780054246000,-156.08721906,0.00014941,2]
[423315704,1780054246000,-150.0,0.00014941,2]
[423315703,1780054246000,-15000.0,0.00014938,2]
[423315706,1780054246000,-2000.0,0.0001495,2]
[423315769,1780054247000,-300.00000021,0.00015,2]
[423315762,1780054247000,-1780973.13803525,0.00015,2]
[423315764,1780054247000,-1236348.04196029,0.00015,2]
[423315761,1780054247000,-300.0,0.00015,2]
[423315765,1780054247000,-1798.61582461,0.00015,2]
[423315766,1780054247000,-1088.59,0.00015,2]
[423315763,1780054247000,-13343516.07904773,0.00015,2]
[423315755,1780054247000,-602.12691317,0.00014999,14]
[423315772,1780054247000,-924.46406754,0.00015,7]
[423315767,1780054247000,-151.0,0.00015,2]
[423315771,1780054247000,-740620.8974305,0.00015,2]
[423315768,1780054247000,-171.300144,0.00015,2]
[423315776,1780054247000,-493.905732,0.00015,2]
[423315775,1780054247000,-493.905739,0.00015,2]
[423315774,1780054247000,-493.905739,0.00015,2]
[423315784,1780054247000,-1000.0,0.00015,2]
[423315783,1780054247000,-1000.0,0.00015,2]
[423315757,1780054247000,-929.11,0.00014999,2]
[423315770,1780054247000,-1153610.83295336,0.00015,2]
[423315753,1780054247000,-500.0,0.00014999,13]
[423315740,1780054247000,-500.0,0.00014999,2]
[423315754,1780054247000,-929.11,0.00014999,2]
[423315782,1780054247000,-1000.0,0.00015,2]
[423315738,1780054247000,-500.0,0.00014999,2]
[423315739,1780054247000,-500.0,0.00014999,2]
[423315742,1780054247000,-500.0,0.00014999,2]
[423315741,1780054247000,-500.0,0.00014999,2]
[423315743,1780054247000,-500.0,0.00014999,2]
[423315745,1780054247000,-301.24,0.00014999,2]
[423315744,1780054247000,-929.11,0.00014999,2]
[423315758,1780054247000,-929.11,0.00014999,2]
[423315746,1780054247000,-929.11,0.00014999,2]
[423315748,1780054247000,-929.11,0.00014999,2]
[423315749,1780054247000,-929.11,0.00014999,2]
[423315750,1780054247000,-929.11,0.00014999,2]
[423315752,1780054247000,-929.11,0.00014999,2]
[423315751,1780054247000,-929.11,0.00014999,2]
[423315760,1780054247000,-300.0,0.00014999,2]
[423315759,1780054247000,-929.28,0.00014999,2]
[423315756,1780054247000,-929.11,0.00014999,2]
[423315747,1780054247000,-929.11,0.00014999,2]
[423315779,1780054247000,-1000.0,0.00015,2]
[423315817,1780054247000,-200.0,0.00015068,2]
[423315781,1780054247000,-1000.0,0.00015,2]
[423315798,1780054247000,-2676.93472083,0.00015025,2]
[423315806,1780054247000,-200.0,0.00015068,2]
[423315801,1780054247000,-300.0,0.00015067,2]
[423315805,1780054247000,-200.0,0.00015068,2]
[423315803,1780054247000,-200.0,0.00015068,2]
[423315802,1780054247000,-176.17,0.00015068,2]
[423315810,1780054247000,-200.0,0.00015068,2]
[423315812,1780054247000,-200.0,0.00015068,2]
[423315807,1780054247000,-200.0,0.00015068,2]